[Event "8th Svetozar Gligoric Cup 2022"]
[Site "Paracin"]
[Date "2022.05.31"]
[Round "1.6"]
[White "Stankovic, Milos"]
[Black "Cica, Dragan"]
[Result "1-0"]
[ECO "B52"]
[WhiteElo "2430"]
[BlackElo "2124"]
[Annotator "TA"]
[PlyCount "119"]
[EventDate "2022.05.31"]
[EventType "team-tourn"]
[EventCountry "SRB"]
[SourceTitle "playchess.com"]
[Source "ChessBase"]
[SourceQuality "1"]
[TimeControl "40/5400+30:900+30"]

{[%evp 14,119,29,35,29,22,50,41,44,47,44,50,55,60,76,72,70,60,75,76,101,95,104,101,102,106,106,94,120,108,118,123,133,107,242,231,294,175,158,133,256,261,258,184,254,249,257,241,304,242,323,307,313,244,464,445,427,298,369,210,195,202,202,170,175,142,149,112,112,113,123,91,89,75,77,70,202,190,194,198,197,193,184,164,336,246,246,253,253,253,379,253,1226,1226,1219,1212,1212,1212,1391,1356,29972,29973,29973,29974,29971,29975,29957,29961]} 1. e4 {[%emt 0:01:10]} c5 {[%emt 0:00:18]} 2. Nf3 {[%emt 0:00:30]} d6 {[%emt 0:00:06]} 3. d4 {[%emt 0:00:34]} cxd4 {[%emt 0:00:09]} 4. Qxd4 {[%emt 0:00:28]} e5 {[%emt 0:05:36]} 5. Bb5+ {[%emt 0:04:07]} Bd7 {[%emt 0:02:40]} 6. Bxd7+ {[%emt 0:03:20]} Nxd7 {[%emt 0:00:31]} 7. Qd3 {[%emt 0:00:39]} Ngf6 {[%emt 0:01:16]} 8. Nc3 {[%emt 0:00:40]} Be7 {[%emt 0:00:37] B52: Sicilian: Moscow Variation with 3...Bd7.} 9. Bg5 {[%emt 0:02:03]} a6 {[%emt 0:04:00]} 10. O-O {[%emt 0:01:31]} (10. Bxf6 $5 Nxf6 11. Rd1 $11) 10... O-O {[%emt 0:05:32] White is slightly better.} 11. Bxf6 {[%emt 0:07:59]} Nxf6 {[%emt 0:00:12] [#]} 12. Nd2 $146 {[%emt 0:00:45][%cal Bf3d2,Bd2c4,Bc4e3,Be3d5][%mdl 32]} ({Predecessor:} 12. Nd5 Nxd5 13. Qxd5 Qc7 14. c4 Rac8 15. b3 g6 16. Ne1 Kg7 17. Nc2 f5 18. Qd3 {½-½ (36) Krivenko,D (2098)-Singh,O (1933) Arandjelovac 2021}) 12... Rc8 {[%emt 0:01:49]} 13. Nc4 {[%emt 0:02:44]} Re8 {[%emt 0:25:19]} 14. Rfd1 {[%emt 0:06:06]} Rc6 {[%emt 0:01:10]} 15. Ne3 {[%emt 0:01:05]} Qb6 {[%emt 0:06:55]} 16. Rab1 {[%emt 0:01:35]} Bf8 {[%emt 0:02:50]} 17. Ncd5 {[%emt 0:03:04]} Nxd5 {[%emt 0:01:08]} 18. Nxd5 {[%emt 0:00:30]} Qc5 {[%emt 0:04:51]} 19. c3 {[%emt 0:01:35]} Qa5 {[%emt 0:08:07]} 20. Rd2 {[%emt 0:04:59]} b5 {[%emt 0:03:16]} 21. Rbd1 {[%emt 0:01:24]} Rec8 {[%emt 0:03:10]} 22. a3 {[%emt 0:02:04] White is more active.} Qa4 {[%emt 0:07:49]} 23. h4 {[%emt 0:02:16]} f5 {[%emt 0:01:29] [#]} (23... Qa5 $16 24. Nb4 Rc4) 24. Nb4 $1 $18 {[%emt 0:02:20]} (24. exf5 $6 Qxh4 25. f6 Qh5 26. fxg7 Kxg7 $16) 24... Rc5 {[%emt 0:00:48] Inhibits Qd5+.} 25. Re1 {[%emt 0:06:13]} (25. exf5 $142 {[%cal Of5f6] Hoping for f6!} a5 26. Nd5 (26. Na6 R5c6 $11)) 25... fxe4 {[%emt 0:04:17]} 26. Rxe4 {[%emt 0:01:45]} ({Don't play} 26. Qxe4 $6 a5 27. Nd5 Qxe4 28. Rxe4 Rc4 $11) 26... Rc4 {[%emt 0:01:08]} (26... Qa5 $16) 27. Rxc4 {[%emt 0:01:09]} bxc4 {[%emt 0:00:39]} 28. Qd5+ {[%emt 0:00:56]} Kh8 {[%emt 0:00:04]} 29. Qb7 {[%emt 0:00:07][%csl LRa6,LRc8]} Qe8 {[%emt 0:01:43]} 30. Qxa6 {[%emt 0:00:14]} ({But not} 30. Nxa6 $6 Rd8 31. Nb4 g6 $16) 30... Qe6 {[%emt 0:00:29]} 31. Qb7 {[%emt 0:00:46]} e4 {[%emt 0:00:24]} 32. Qd5 {[%emt 0:01:53]} Qg4 {[%emt 0:00:26]} 33. Rd4 {[%emt 0:01:12][%csl LRc4,LRe4]} Qxh4 {[%emt 0:01:26]} (33... Qe2 {might work better.} 34. Qxe4 Qxb2 35. Rxc4 Rxc4 36. Qxc4 Qc1+ 37. Kh2 d5 38. Nxd5 Qb2) 34. Rxe4 {[%emt 0:00:51]} Qh6 {[%emt 0:00:12]} 35. Re3 {[%emt 0:00:51]} Qg6 {[%emt 0:02:09]} 36. Qe4 {[%emt 0:00:38] Inhibits Qb1+.} (36. g3 $142) 36... Qxe4 {[%emt 0:00:25]} 37. Rxe4 {[%emt 0:00:08][%mdl 4096] Endgame KRB-KRN} Kg8 {[%emt 0:00:06]} 38. Kf1 {[%emt 0:00:48]} Kf7 {[%emt 0:00:21]} 39. Ke2 {[%emt 0:00:14]} Rc5 {[%emt 0:00:36]} 40. Kd1 {[%emt 0:00:00]} Be7 {[%emt 0:00:00]} 41. Nc2 {[%emt 0:04:19]} d5 {[%emt 0:04:36]} 42. Rf4+ {[%emt 0:01:30]} Bf6 {[%emt 0:00:08]} 43. Nd4 {[%emt 0:03:31]} g5 {[%emt 0:00:33]} 44. Rf5 {[%emt 0:02:06]} Kg6 {[%emt 0:00:41]} (44... h5 $1 $14) 45. g4 {[%emt 0:01:40]} Bxd4 {[%emt 0:01:24]} 46. cxd4 {[%emt 0:00:06] KR-KR} Rb5 {[%emt 0:00:05]} 47. Kc2 {[%emt 0:00:06]} h5 {[%emt 0:00:08] [#]} 48. f4 $1 {[%emt 0:00:41][%cal Bf2f4,Bf4f5][%mdl 32]} ({Much less strong is} 48. a4 $6 Ra5 $14) 48... hxg4 $2 {[%emt 0:01:59]} (48... gxf4 49. Rxh5 Rb3) 49. Rxg5+ {[%emt 0:00:12]} Kf6 {[%emt 0:00:03]} 50. Rxg4 {[%emt 0:04:40] Rg5 is the strong threat.} Kf5 {[%emt 0:00:09]} 51. Rg1 {[%emt 0:02:29]} Ke4 {[%emt 0:04:46]} (51... Kxf4 $142 52. Re1 Kg5) 52. f5 {[%emt 0:00:54]} Kxd4 $2 {[%emt 0:08:33]} (52... Kxf5 53. Re1 Ra5 54. Re5+ Kf6) 53. f6 {[%emt 0:00:14] White wants to mate with f7.} Rb7 {[%emt 0:00:06]} 54. Rf1 {[%emt 0:02:35] Threatens to win with f7.} Rf7 {[%emt 0:00:07]} 55. Kd2 {[%emt 0:00:52]} Ke5 {[%emt 0:02:41]} 56. Kc3 {[%emt 0:00:14]} Rxf6 {[%emt 0:01:16]} 57. Rxf6 {[%emt 0:00:07] White mates.} Kxf6 {[%emt 0:00:03]} 58. Kd4 {[%emt 0:00:27]} Ke6 {[%emt 0:00:05]} 59. a4 {[%emt 0:00:39][%cal Ba3a4,Ba4a5][%mdl 32]} Kd6 {[%emt 0:00:04]} 60. a5 {[%emt 0:00:12] Weighted Error Value: White=0.21 (precise) /Black=0.51} 1-0

[Event "8th Svetozar Gligoric Cup 2022"]
[Site "Paracin"]
[Date "2022.05.31"]
[Round "1.7"]
[White "Alimpic, Aleksa"]
[Black "Zajic, Milan"]
[Result "0-1"]
[ECO "D00"]
[WhiteElo "2234"]
[BlackElo "2426"]
[Annotator "TA"]
[PlyCount "70"]
[EventDate "2022.05.31"]
[EventType "team-tourn"]
[EventCountry "SRB"]
[SourceTitle "playchess.com"]
[Source "ChessBase"]
[SourceQuality "1"]
[TimeControl "40/5400+30:900+30"]

{[%evp 9,70,10,10,8,8,0,0,0,0,0,0,-39,-29,-25,-34,-39,-29,-62,-62,-61,-66,-66,-55,-52,-54,-72,-62,-189,-178,-180,-169,-194,-173,-181,-168,-228,-67,-62,-79,-250,-256,-359,-356,-446,-432,-543,-516,-698,-689,-914,-908,-1150,-403,-596,-592,-1112,-1039,-1931,-1668,-2742,-2473,-2176,-1595]} 1. d4 {[%emt 0:00:15]} Nf6 {[%emt 0:00:04]} 2. Bg5 {[%emt 0:00:40]} d5 {[%emt 0:00:38]} 3. e3 {[%emt 0:00:19]} c5 {[%emt 0:08:41]} 4. Bxf6 {[%emt 0:00:07]} gxf6 {[%emt 0:00:02]} 5. dxc5 {[%emt 0:00:06]} Nc6 {[%emt 0:01:10]} 6. Bb5 {[%emt 0:00:10] D00: 1 d4 d5: Unusual lines.} Rg8 {[%emt 0:24:27]} 7. Nc3 {[%emt 0:10:23] [#]} e6 $146 {[%emt 0:01:52]} ({Predecessor:} 7... a6 8. Bf1 e6 9. Na4 Bd7 10. c3 Ne5 11. Nb6 Rb8 12. b4 Bc6 13. Ne2 Bb5 {1-0 (29) Naess,J (2074)-Trevis,R (1063) LSS email 2011}) 8. Qh5 {[%emt 0:07:58] The position is equal.} Rxg2 {[%emt 0:12:18]} 9. Nge2 {[%emt 0:05:34] Ng3 is the strong threat.} Rg6 {[%emt 0:06:08]} 10. O-O-O {[%emt 0:23:47] Strongly threatening e4.} Rh6 {[%emt 0:05:47]} 11. Qf3 {[%emt 0:00:55]} f5 {[%emt 0:08:30] Against e4} 12. Nd4 {[%emt 0:15:51]} Bd7 {[%emt 0:01:39]} 13. Nb3 {[%emt 0:00:15]} a6 {[%emt 0:09:39]} 14. Bxc6 {[%emt 0:05:14]} Bxc6 {[%emt 0:00:43]} 15. Qe2 {[%emt 0:06:35]} Qc7 {[%emt 0:04:50]} 16. f3 $1 {[%emt 0:01:50]} O-O-O {[%emt 0:01:47]} 17. Kb1 {[%emt 0:00:30]} Be7 {[%emt 0:01:01][%cal Bf8e7,Be7d8,Bd8f6][%mdl 32]} 18. e4 {[%emt 0:04:02]} (18. h4 $15) 18... dxe4 $19 {[%emt 0:02:13]} 19. Rxd8+ {[%emt 0:00:50]} Bxd8 {[%emt 0:01:04]} 20. fxe4 {[%emt 0:00:28] [#]} Bf6 $1 {[%emt 0:02:10]} 21. Qd2 {[%emt 0:05:22]} Rh4 {[%emt 0:04:04]} 22. Rg1 {[%emt 0:04:00]} (22. h3 {was necessary.}) 22... Rg4 $2 {[%emt 0:00:09]} ({Worse is} 22... fxe4 23. Rg8+ Bd8 24. Qd4 $17) ({Black should try} 22... Qxh2 $19 23. Qd1 (23. Rg8+ $2 Kc7 $19) 23... Bxe4 24. Nxe4 Rxe4) 23. Rxg4 $15 {[%emt 0:00:56]} fxg4 {[%emt 0:00:01]} 24. Qe2 $2 {[%emt 0:04:46]} (24. Qh6 $17 Qe7 25. Qxh7) 24... h5 $19 {[%emt 0:00:55][%cal Bh7h5,Bh5h4][%mdl 32]} 25. Qf2 {[%emt 0:01:22]} (25. Nc1 $142) 25... Qe5 {[%emt 0:02:06]} ({But not} 25... Bxc3 $2 26. bxc3 Bxe4 27. Kb2 $19) 26. Nd2 {[%emt 0:00:25]} Qd4 {[%emt 0:00:32]} 27. Qxd4 {[%emt 0:00:46]} Bxd4 {[%emt 0:00:02][%mdl 4096] Endgame KBB-KNN} 28. Ne2 {[%emt 0:00:03]} Be5 {[%emt 0:00:32]} 29. Ng3 {[%emt 0:00:46]} h4 {[%emt 0:00:57]} 30. Ngf1 {[%emt 0:00:01]} Bd4 {[%emt 0:00:51] This bishop pair is nice.} (30... h3 $142 31. Kc1 {[#]} Bxh2 $1 {[%mdl 512]}) 31. b4 {[%emt 0:01:12]} (31. c3 {might work better.} Be5 32. Ka1) 31... f5 {[%emt 0:00:17] Black is clearly winning.} 32. exf5 {[%emt 0:00:18]} exf5 {[%emt 0:00:03][%cal Be6f5,Bf5f4,Bf4g3][%mdl 32] Threatens to win with ...f4.} 33. Kc1 {[%emt 0:00:11]} f4 {[%emt 0:00:43] And now ...g3 would win.} 34. Kd1 {[%emt 0:00:12]} g3 {[%emt 0:00:19] aiming for ...g2.} 35. hxg3 {[%emt 0:00:16]} fxg3 {[%emt 0:00:21] Weighted Error Value: White=0.94/Black=0.21 (precise)} 0-1

[Event "8th Svetozar Gligoric Cup 2022"]
[Site "Paracin"]
[Date "2022.05.31"]
[Round "1.8"]
[White "Toth, Aleksandar"]
[Black "Dedijer, Zarko"]
[Result "1-0"]
[ECO "C00"]
[WhiteElo "2335"]
[BlackElo "1884"]
[Annotator "TA"]
[PlyCount "65"]
[EventDate "2022.05.31"]
[EventType "team-tourn"]
[EventCountry "SRB"]
[SourceTitle "playchess.com"]
[Source "ChessBase"]
[SourceQuality "1"]
[TimeControl "40/5400+30:900+30"]

{[%evp 22,65,-44,-50,-29,-29,0,0,0,-4,0,-5,0,-5,0,0,0,16,9,0,0,0,0,0,0,0,0,-46,-46,-40,-61,-125,-129,-121,573,564,702,664,687,680,719,652,701,685,495,435]} 1. e4 {[%emt 0:00:05]} e6 {[%emt 0:00:18]} 2. d3 {[%emt 0:00:28]} d5 {[%emt 0:00:15]} 3. Nd2 {[%emt 0:00:23]} c5 {[%emt 0:02:03]} 4. Ngf3 {[%emt 0:00:32]} Nc6 {[%emt 0:00:14]} 5. g3 {[%emt 0:03:51]} Nf6 {[%emt 0:00:48]} 6. Bg2 {[%emt 0:00:34]} Be7 {[%emt 0:01:20]} 7. O-O {[%emt 0:00:16]} O-O {[%emt 0:00:12]} 8. e5 {[%emt 0:02:03]} Nd7 {[%emt 0:00:16]} 9. Re1 {[%emt 0:00:10]} Qc7 {[%emt 0:00:56]} 10. Qe2 {[%emt 0:00:19]} b5 {[%emt 0:04:41]} 11. Nf1 {[%emt 0:01:29]} Bb7 {[%emt 0:00:57] now scores much better than the old 11...a5.} 12. h4 {[%emt 0:02:37][%cal Bh2h4,Bh4h5,Bh5h6][%mdl 32]} Rac8 {[%emt 0:00:42] C00: French: Unusual White 2nd moves.} 13. Bf4 {[%emt 0:18:23]} Nd4 {[%emt 0:02:08]} 14. Nxd4 {[%emt 0:00:06]} cxd4 {[%emt 0:00:07] The position is equal.} 15. Rec1 {[%emt 0:01:06]} b4 {[%emt 0:03:29]} 16. Nh2 {[%emt 0:02:53]} Qb6 {[%emt 0:08:02] [#]} 17. h5 $146 {[%emt 0:07:58]} ({Predecessor:} 17. Bg5 f6 18. exf6 Bxf6 19. Bh3 Rce8 20. f4 Bc8 21. Nf3 h6 22. Bxf6 gxf6 23. Rf1 {1-0 (58) Schulz,K (2310)-Reipsch,J (2217) Germany 2012}) 17... Rc6 {[%emt 0:06:53]} 18. h6 {[%emt 0:13:42] [#] And now hxg7 would win.} g6 {[%emt 0:01:14]} 19. Nf3 {[%emt 0:00:21]} Rfc8 {[%emt 0:00:27]} 20. Qd2 {[%emt 0:01:15]} a5 {[%emt 0:00:49]} 21. Bh3 {[%emt 0:02:25]} a4 {[%emt 0:01:28]} 22. Rab1 {[%emt 0:05:58]} Ba6 {[%emt 0:05:19]} 23. Bg5 {[%emt 0:03:15]} Bf8 {[%emt 0:07:02]} ({Resist} 23... Bxg5 24. Qxg5 b3 25. axb3 axb3 26. cxb3 Bxd3 27. Rxc6 Qxc6 28. Ra1 $16) 24. Qf4 {[%emt 0:13:35]} (24. Bf1 $11 {was preferrable.}) 24... Rxc2 {[%emt 0:02:27]} 25. Rxc2 {[%emt 0:00:03]} Rxc2 {[%emt 0:00:07]} 26. Nxd4 {[%emt 0:00:05]} (26. Bf1 $1 $15) 26... Rc8 $17 {[%emt 0:03:39] White must now prevent ...Bc5.} 27. Rd1 {[%emt 0:01:03]} Qc7 $2 {[%emt 0:01:58][%mdl 8192] [#] Black cannot hold the game after this.} (27... a3 $17 {keeps the pressure on.} 28. b3 Rc3) 28. Nxe6 $1 $18 {[%emt 0:01:54][%mdl 512] White is clearly winning.} Qxe5 {[%emt 0:01:10]} (28... Qc6 29. Nxf8) 29. Nxf8 {[%emt 0:01:00]} Qxf4 {[%emt 0:03:25]} 30. Bxf4 {[%emt 0:00:21]} Nxf8 {[%emt 0:00:18]} 31. Bxc8 {[%emt 0:00:10]} Bxc8 {[%emt 0:00:02]} 32. Rc1 {[%emt 0:02:29]} Bf5 {[%emt 0:00:34]} 33. Bd6 {[%emt 0:00:20] Weighted Error Value: White=0.08 (flawless) /Black=0.49} 1-0

[Event "8th Svetozar Gligoric Cup 2022"]
[Site "Paracin"]
[Date "2022.05.31"]
[Round "1.9"]
[White "Atalik, Suat"]
[Black "Filipovic, Ivica"]
[Result "1-0"]
[ECO "D17"]
[WhiteElo "2459"]
[BlackElo "1984"]
[Annotator "TA"]
[PlyCount "29"]
[EventDate "2022.05.31"]
[EventType "team-tourn"]
[EventCountry "SRB"]
[SourceTitle "playchess.com"]
[Source "ChessBase"]
[SourceQuality "1"]
[TimeControl "40/5400+30:900+30"]

{[%evp 14,29,52,51,58,37,89,83,84,79,79,82,84,42,37,39,241,234]} 1. d4 {[%emt 1:31:00]} d5 {[%emt 0:00:10]} 2. c4 {[%emt 0:00:00]} c6 {[%emt 0:00:19]} 3. Nf3 {[%emt 0:00:00]} Nf6 {[%emt 0:00:28]} 4. Nc3 {[%emt 0:00:00]} dxc4 {[%emt 0:01:25]} 5. a4 {[%emt 0:00:00]} Bf5 {[%emt 0:00:24]} 6. Ne5 {[%emt 0:00:00]} Nbd7 {[%emt 0:03:46] 6...Nbd7 is better than 6...e6.} 7. Nxc4 {[%emt 0:00:00]} e6 {[%emt 0:04:58]} 8. f3 {[%emt 0:00:00]} Bg6 {[%emt 0:03:04] D17: Slav Defence: 5 a4 Bf5: Lines with 6 Nh4 and 6 Ne5.} 9. e4 {[%emt 0:00:00]} Qc7 {[%emt 0:04:31]} (9... a5 $14) 10. g3 $16 {[%emt 0:00:00]} Nb6 {[%emt 0:19:50] White is better.} 11. Bf4 {[%emt 0:00:00][%cal Bc1f4,Bf4e5,Be5d6][%mdl 32]} Qd8 {[%emt 0:00:13]} 12. Ne5 {[%emt 0:00:00] [#] White is more active.} Nbd7 $146 {[%emt 0:10:55]} ({Predecessor:} 12... Be7 13. a5 Nbd7 14. Qb3 Nxe5 15. dxe5 Nd7 16. Qxb7 Rb8 17. Qxc6 Rxb2 18. Bb5 Bb4 19. Bg5 {1-0 (19) Ter Steeg,R (800)-Raines,D (1099) IECC email 2014}) 13. a5 {[%emt 0:00:00]} Nxe5 {[%emt 0:01:57]} 14. Bxe5 {[%emt 0:00:00]} Bd6 $2 {[%emt 0:05:52] [#]} (14... Be7 $14) 15. Bxd6 $1 {[%emt 0:00:00] Weighted Error Value: White=0.06 (flawless) /Black=0.52} 1-0

[Event "8th Svetozar Gligoric Cup 2022"]
[Site "Paracin"]
[Date "2022.05.31"]
[Round "1.10"]
[White "Kandjolas, Konstantin"]
[Black "Markovic, Miroslav"]
[Result "1/2-1/2"]
[ECO "E91"]
[WhiteElo "2031"]
[BlackElo "2271"]
[Annotator "TA"]
[PlyCount "65"]
[EventDate "2022.05.31"]
[EventType "team-tourn"]
[EventCountry "SRB"]
[SourceTitle "playchess.com"]
[Source "ChessBase"]
[SourceQuality "1"]
[TimeControl "40/5400+30:900+30"]

{[%evp 17,65,41,41,21,19,23,20,14,15,0,-5,0,17,0,0,0,0,0,31,2,22,20,50,0,0,0,0,-17,0,-11,7,0,0,0,8,8,8,8,106,0,0,0,0,0,0,0,0,0,0,0]} 1. d4 {[%emt 0:00:06]} Nf6 {[%emt 0:00:08]} 2. c4 {[%emt 0:00:12]} g6 {[%emt 0:00:09]} 3. Nc3 {[%emt 0:00:15]} Bg7 {[%emt 0:00:02]} 4. e4 {[%emt 0:00:32]} d6 {[%emt 0:00:09]} 5. Nf3 {[%emt 0:00:45]} O-O {[%emt 0:00:06]} 6. Be2 {[%emt 0:00:08]} Bg4 {[%emt 0:00:09]} 7. Be3 {[%emt 0:00:53]} Nfd7 {[%emt 0:00:10]} 8. Rc1 {[%emt 0:02:35]} e5 {[%emt 0:00:52]} 9. d5 {[%emt 0:09:46]} a5 {[%emt 0:00:03]} 10. Nd2 {[%emt 0:03:18] [#] Black must now prevent f3. E91: King's Indian: Classical: 6 Be2, unusual replies including 6...c5 and 6...Bg4.} Bxe2 {[%emt 0:00:17]} 11. Qxe2 {[%emt 0:00:14]} f5 {[%emt 0:01:01] aiming for ...f4.} 12. f3 {[%emt 0:04:11]} Bh6 {[%emt 0:00:41]} 13. O-O {[%emt 0:04:34]} Bxe3+ {[%emt 0:00:07]} 14. Qxe3 {[%emt 0:00:10]} Na6 {[%emt 0:00:38]} (14... f4 $5 {[%cal Rf4e3]} 15. Qe2 Nc5 $11) 15. a3 {[%emt 0:09:30]} f4 {[%emt 0:03:17]} 16. Qe2 {[%emt 0:09:05] [#]} Qh4 $146 {[%emt 0:04:11]} ({Predecessor:} 16... c6 17. Kh1 Ndc5 18. b3 Qf6 19. Rb1 Nd7 20. Rfd1 Nac5 21. b4 axb4 22. axb4 Na4 23. Nxa4 Rxa4 {½-½ (32) Zur Lage,J (2084)-Bergauz,N (2236) Bayern 2015}) 17. Rb1 {[%emt 0:05:56]} g5 {[%emt 0:00:43]} 18. b4 {[%emt 0:05:15]} axb4 {[%emt 0:00:45]} 19. axb4 {[%emt 0:00:14]} Rf6 {[%emt 0:00:05]} 20. Qf2 {[%emt 0:10:16]} ({White should play} 20. Nd1 $14) 20... Qxf2+ $11 {[%emt 0:00:30]} 21. Kxf2 {[%emt 0:01:24]} h5 {[%emt 0:00:05]} 22. h3 {[%emt 0:01:26]} Kf7 {[%emt 0:00:08]} (22... g4 {keeps more tension.} 23. Rh1 gxf3 24. gxf3 Rg6) 23. Nb5 {[%emt 0:10:55]} Rg8 {[%emt 0:00:18]} 24. c5 {[%emt 0:07:41]} dxc5 {[%emt 0:00:28]} 25. bxc5 {[%emt 0:00:24]} Ndxc5 {[%emt 0:00:09]} 26. Nc4 {[%emt 0:01:03]} Nd7 {[%emt 0:01:51]} 27. Nxc7 {[%emt 0:02:39]} Nac5 {[%emt 0:00:07]} (27... Nxc7 $11 28. Rxb7 Rc8) 28. Ke2 {[%emt 0:11:03] White is more active.} ({Better is} 28. Rfd1 $16) 28... g4 {[%emt 1:27:21] The position is equal.} 29. hxg4 {[%emt 0:00:30]} hxg4 30. Ne6 {[%emt 0:00:30]} gxf3+ {[%emt 0:01:00]} 31. gxf3 {[%emt 0:00:30] [#] Hoping for Nxc5.} Rg2+ {[%emt 0:00:30]} 32. Rf2 Rxf2+ 33. Kxf2 {Weighted Error Value: White=0.13 (very precise) /Black=0.12 (very precise)} 1/2-1/2

[Event "8th Svetozar Gligoric Cup 2022"]
[Site "Paracin"]
[Date "2022.05.31"]
[Round "1.10"]
[White "Romanov, Konstantin K"]
[Black "Markovic, Miroslav"]
[Result "1/2-1/2"]
[ECO "E91"]
[WhiteElo "1206"]
[BlackElo "2271"]
[Annotator "TA"]
[PlyCount "65"]
[EventDate "2022.05.31"]
[EventType "team-tourn"]
[EventCountry "SRB"]
[SourceTitle "playchess.com"]
[Source "ChessBase"]
[SourceQuality "1"]
[TimeControl "40/5400+30:900+30"]

{[%evp 17,65,42,44,13,5,13,10,5,16,-6,0,0,26,0,0,0,9,0,46,34,35,41,39,0,0,0,0,0,0,-17,0,9,0,7,8,8,8,8,74,0,0,0,0,0,0,0,0,0,0,0]} 1. d4 {[%emt 0:00:06]} Nf6 {[%emt 0:00:08]} 2. c4 {[%emt 0:00:12]} g6 {[%emt 0:00:09]} 3. Nc3 {[%emt 0:00:15]} Bg7 {[%emt 0:00:02]} 4. e4 {[%emt 0:00:32]} d6 {[%emt 0:00:09]} 5. Nf3 {[%emt 0:00:45]} O-O {[%emt 0:00:06]} 6. Be2 {[%emt 0:00:08]} Bg4 {[%emt 0:00:09]} 7. Be3 {[%emt 0:00:53]} Nfd7 {[%emt 0:00:10]} 8. Rc1 {[%emt 0:02:35]} e5 {[%emt 0:00:52]} 9. d5 {[%emt 0:09:46]} a5 {[%emt 0:00:03]} 10. Nd2 {[%emt 0:03:18] [#] Black must now prevent f3. E91: King's Indian: Classical: 6 Be2, unusual replies including 6...c5 and 6...Bg4.} Bxe2 {[%emt 0:00:17]} 11. Qxe2 {[%emt 0:00:14]} f5 {[%emt 0:01:01]} 12. f3 {[%emt 0:04:11]} Bh6 {[%emt 0:00:41]} 13. O-O {[%emt 0:04:34]} Bxe3+ {[%emt 0:00:07]} 14. Qxe3 {[%emt 0:00:10]} Na6 {[%emt 0:00:38]} 15. a3 {[%emt 0:09:30]} f4 {[%emt 0:03:17]} 16. Qe2 {[%emt 0:09:05] [#]} Qh4 $146 {[%emt 0:04:11]} ({Predecessor:} 16... c6 17. Kh1 Ndc5 18. b3 Qf6 19. Rb1 Nd7 20. Rfd1 Nac5 21. b4 axb4 22. axb4 Na4 23. Nxa4 Rxa4 {½-½ (32) Zur Lage,J (2084)-Bergauz,N (2236) Bayern 2015}) 17. Rb1 {[%emt 0:05:56]} g5 {[%emt 0:00:43]} (17... Qe7 $11) 18. b4 $14 {[%emt 0:05:15]} axb4 {[%emt 0:00:45]} 19. axb4 {[%emt 0:00:14]} Rf6 {[%emt 0:00:05]} 20. Qf2 {[%emt 0:10:16]} Qxf2+ {[%emt 0:00:30]} 21. Kxf2 {[%emt 0:01:24]} h5 {[%emt 0:00:05]} 22. h3 {[%emt 0:01:26]} Kf7 {[%emt 0:00:08]} 23. Nb5 {[%emt 0:10:55]} Rg8 {[%emt 0:00:18]} 24. c5 {[%emt 0:07:41]} dxc5 {[%emt 0:00:28]} 25. bxc5 {[%emt 0:00:24]} Ndxc5 {[%emt 0:00:09]} 26. Nc4 {[%emt 0:01:03]} Nd7 {[%emt 0:01:51]} 27. Nxc7 {[%emt 0:02:39]} Nac5 {[%emt 0:00:07]} (27... Nxc7 $11 {keeps the balance.} 28. Rxb7 Rc8) 28. Ke2 {[%emt 0:11:03] White is more active.} ({White should try} 28. Ne6 $16) 28... g4 $11 {[%emt 1:27:21] The position is equal.} 29. hxg4 {[%emt 0:00:30]} hxg4 30. Ne6 {[%emt 0:00:30] [#] Nxc5 is the strong threat.} gxf3+ {[%emt 0:01:00]} 31. gxf3 {[%emt 0:00:30] Hoping for Nxc5.} Rg2+ {[%emt 0:00:30]} 32. Rf2 Rxf2+ 33. Kxf2 {Weighted Error Value: White=0.11 (very precise) /Black=0.09 (flawless)} 1/2-1/2